fUSD/lending_fUSD_20241122
["ID","MTS","AMOUNT","RATE_DAILY","PERIOD"]
[343052911,1732313443059,-500.0,0.000939,120]
[343052913,1732313443070,-500.0,0.000939,120]
[343052915,1732313443079,-120.8491588,0.000939,120]
[343052916,1732313443091,-254.38578374,0.000939,120]
[343052918,1732313443105,-124.76505746,0.000939,120]
[343052920,1732313443114,-233.4901992,0.000939,120]
[343052922,1732313443127,-266.5098008,0.000939,120]
[343052923,1732313443137,-195.36519802,0.000939,120]
[343052928,1732313443355,-304.63480198,0.000939,120]
[343052929,1732313443364,-500.0,0.000939,120]
[343052930,1732313443374,-500.0,0.000939,120]
[343052931,1732313443383,-500.0,0.000939,120]
[343052932,1732313443393,-500.0,0.000939,120]
[343052933,1732313443403,-500.0,0.000939,120]
[343052934,1732313443412,-500.0,0.000939,120]
[343052935,1732313443422,-49.30970327,0.000939,120]
[343052936,1732313443433,-450.69029673,0.000939,120]
[343052937,1732313443443,-500.0,0.000939,120]
[343052938,1732313443453,-500.0,0.000939,120]
[343052939,1732313443462,-500.0,0.000939,120]
[343052941,1732313443471,-500.0,0.000939,120]
[343052943,1732313443481,-500.0,0.000939,120]
[343052944,1732313443490,-500.0,0.000939,120]
[343052945,1732313443500,-500.0,0.000939,120]
[343052946,1732313443510,-500.0,0.000939,120]
[343052947,1732313443519,-221.1267102,0.000939,120]
[343052948,1732313443531,-278.8732898,0.000939,120]
[343052949,1732313443540,-500.0,0.000939,120]
[343052950,1732313443550,-500.0,0.000939,120]
[343052951,1732313443559,-500.0,0.000939,120]
[343052952,1732313443568,-500.0,0.000939,120]
[343052953,1732313443578,-500.0,0.000939,120]
[343052954,1732313443587,-500.0,0.000939,120]
[343052955,1732313443596,-500.0,0.000939,120]
[343052956,1732313443606,-500.0,0.000939,120]
[343052957,1732313443615,-11.39571503,0.000939,120]
[343052958,1732313443626,-488.60428497,0.000939,120]
[343052959,1732313443636,-500.0,0.000939,120]
[343052960,1732313443645,-500.0,0.000939,120]
[343052961,1732313443654,-500.0,0.000939,120]
[343052962,1732313443662,-500.0,0.000939,120]
[343052963,1732313443671,-500.0,0.000939,120]
[343052964,1732313443680,-500.0,0.000939,120]
[343052965,1732313443689,-500.0,0.000939,120]
[343052966,1732313443699,-500.0,0.000939,120]
[343052967,1732313443709,-278.40623806,0.000939,120]
[343052968,1732313443721,-221.59376194,0.000939,120]
[343052969,1732313443730,-500.0,0.000939,120]
[343052970,1732313443739,-500.0,0.000939,120]
[343052971,1732313443749,-500.0,0.000939,120]
[343052972,1732313443759,-500.0,0.000939,120]
[343052973,1732313443768,-500.0,0.000939,120]
[343052974,1732313443777,-500.0,0.000939,120]
[343052975,1732313443787,-500.0,0.000939,120]
[343052976,1732313443796,-500.0,0.000939,120]
[343052977,1732313443805,-500.0,0.000939,120]
[343052978,1732313443814,-500.0,0.000939,120]
[343052979,1732313443823,-500.0,0.000939,120]
[343052980,1732313443832,-500.0,0.000939,120]
[343052981,1732313443841,-500.0,0.000939,120]
[343052982,1732313443850,-500.0,0.000939,120]
[343052983,1732313443858,-238.94162855,0.000939,120]
[343052984,1732313443872,-261.05837145,0.000939,120]
[343052985,1732313443882,-500.0,0.000939,120]
[343052986,1732313443890,-500.0,0.000939,120]
[343052987,1732313443899,-500.0,0.000939,120]
[343052988,1732313443908,-500.0,0.000939,120]
[343052989,1732313443918,-500.0,0.000939,120]
[343052990,1732313443927,-500.0,0.000939,120]
[343052991,1732313443936,-500.0,0.000939,120]
[343052992,1732313443945,-500.0,0.000939,120]
[343052993,1732313443954,-500.0,0.000939,120]
[343052994,1732313443964,-500.0,0.000939,120]
[343052995,1732313443973,-500.0,0.000939,120]
[343052996,1732313443983,-500.0,0.000939,120]
[343052997,1732313443991,-500.0,0.000939,120]
[343052998,1732313444000,-500.0,0.000939,120]
[343052999,1732313444009,-500.0,0.000939,120]
[343053000,1732313444019,-500.0,0.000939,120]
[343053001,1732313444028,-500.0,0.000939,120]
[343053002,1732313444037,-500.0,0.000939,120]
[343053003,1732313444046,-500.0,0.000939,120]
[343053004,1732313444055,-500.0,0.000939,120]
[343053005,1732313444065,-500.0,0.000939,120]
[343053006,1732313444078,-500.0,0.000939,120]
[343053007,1732313444088,-500.0,0.000939,120]
[343053008,1732313444098,-9689.94027202,0.00093979,12]
[343053009,1732313444108,-27785.9524725,0.00093989,12]
[343053010,1732313444118,-19379.880544,0.00093989,12]
[343053011,1732313444128,-500.0,0.00093989,120]
[343053012,1732313444137,-500.0,0.00093989,120]
[343053013,1732313444149,-541.91,0.00093989,120]
[343053014,1732313444159,-500.0,0.00093989,120]
[343053015,1732313444168,-65.9056071,0.00093989,120]
[343053016,1732313444180,-487.1943929,0.00093989,120]
[343053017,1732313444190,-500.0,0.00093989,120]
[343053018,1732313444199,-500.0,0.00093989,120]
[343053019,1732313444213,-500.0,0.00093989,120]
[343053020,1732313444223,-443.42829725,0.00093989,120]
[343053021,1732313444234,-56.57170275,0.00093989,120]
[343053022,1732313444247,-500.0,0.00093989,120]
[343053023,1732313444256,-194.71077954,0.00093989,120]
[343053024,1732313444266,-387.94629867,0.00093989,120]
[343053025,1732313444278,-112.05370133,0.00093989,120]
[343053026,1732313444288,-500.0,0.00093989,120]
[343053027,1732313444297,-340.42317771,0.00093989,120]
[343053028,1732313444309,-159.57682229,0.00093989,120]
[343053029,1732313444320,-396.92,0.00093989,120]
[343053030,1732313444329,-500.0,0.00093989,120]
[343053031,1732313444338,-500.0,0.00093989,120]
[343053032,1732313444348,-500.0,0.00093989,120]
[343053033,1732313444357,-647.39,0.00093989,120]
[343053034,1732313444366,-500.0,0.00093989,120]
[343053035,1732313444375,-273.22428595,0.00093989,120]
[343053036,1732313444385,-500.0,0.00093989,120]
[343053037,1732313444394,-500.0,0.00093989,120]
[343053038,1732313444403,-500.0,0.00093989,120]
[343053039,1732313444412,-828.72,0.00093989,2]
[343053040,1732313444421,-500.0,0.00093989,120]
[343053041,1732313444431,-500.0,0.00093989,120]
[343053042,1732313444440,-178.01598335,0.00093989,120]
[343053043,1732313444449,-500.78501038,0.00093989,120]
[343053044,1732313444459,-535.73,0.00093989,120]
[343053045,1732313444468,-500.0,0.00093989,120]
[343053046,1732313444477,-500.0,0.00093989,120]
[343053047,1732313444487,-2458.23659907,0.0009399,12]
[343053048,1732313444498,-12790.10670477,0.0009399,12]
[343053049,1732313444510,-642.97607776,0.0009399,12]
[343053050,1732313444521,-5374.76455468,0.0009399,12]
[343053051,1732313444532,-1817.76921031,0.0009399,12]
[343053052,1732313444544,-4702.09932591,0.0009399,12]
[343053053,1732313444553,-4080.40067409,0.0009399,12]
[343053054,1732313444563,-1953.64622021,0.0009399,12]
[343053055,1732313444579,-23035.7739218,0.0009399,12]
[343053056,1732313444589,-13892.9762363,0.0009399,12]
[343053057,1732313444598,-38759.7610881,0.0009399,12]
[343053058,1732313444607,-500.0,0.00093999,120]
[343053059,1732313444617,-500.0,0.00093999,120]
[343053060,1732313444625,-500.0,0.00093999,120]
[343053061,1732313444634,-500.0,0.00093999,120]
[343053062,1732313444643,-500.0,0.00093999,120]
[343053063,1732313444652,-500.0,0.00093999,120]
[343053064,1732313444755,-500.0,0.00093999,120]
[343053065,1732313444765,-500.0,0.00093999,120]
[343053066,1732313444774,-500.0,0.00093999,120]
[343053067,1732313444783,-247.52,0.00093999,120]
[343053068,1732313444792,-500.0,0.00093999,120]
[343053069,1732313444802,-500.0,0.00093999,120]
[343053070,1732313444811,-500.0,0.00093999,120]
[343053071,1732313444821,-500.0,0.00093999,120]
[343053072,1732313444830,-500.0,0.00093999,120]
[343053073,1732313444839,-500.0,0.00093999,120]
[343053074,1732313444848,-500.0,0.00093999,120]
[343053075,1732313444857,-540.62675468,0.00093999,120]
[343053076,1732313444867,-500.0,0.00093999,120]
[343053077,1732313444876,-500.0,0.00093999,120]
[343053078,1732313444886,-500.0,0.00093999,120]
[343053079,1732313444895,-500.0,0.00093999,120]
[343053080,1732313444905,-500.0,0.00093999,120]
[343053081,1732313444915,-500.0,0.00093999,120]
[343053082,1732313444924,-500.0,0.00093999,120]
[343053083,1732313444935,-193.2639077,0.00093999,120]
[343053084,1732313444945,-295.21832613,0.00093999,120]
[343053085,1732313444954,-500.0,0.00093999,120]
[343053086,1732313444963,-500.0,0.00093999,120]
[343053087,1732313444972,-500.0,0.00093999,120]
[343053088,1732313444983,-500.0,0.00093999,120]
[343053089,1732313444993,-500.0,0.00093999,120]
[343053090,1732313445003,-500.0,0.00093999,120]
[343053091,1732313445013,-500.0,0.00093999,120]
[343053092,1732313445023,-500.0,0.00093999,120]
[343053093,1732313445032,-758.34,0.00093999,120]
[343053094,1732313445042,-758.34,0.00093999,120]
[343053095,1732313445052,-500.0,0.00093999,120]
[343053096,1732313445064,-500.0,0.00093999,120]
[343053097,1732313445073,-500.0,0.00093999,120]
[343053098,1732313445083,-500.0,0.00093999,120]
[343053099,1732313445092,-520.49348231,0.00093999,120]
[343053100,1732313445103,-500.0,0.00093999,120]
[343053101,1732313445114,-500.0,0.00093999,120]
[343053102,1732313445123,-500.0,0.00093999,120]
[343053103,1732313445134,-500.0,0.00093999,120]
[343053104,1732313445144,-500.0,0.00093999,120]
[343053105,1732313445153,-500.0,0.00093999,120]
[343053106,1732313445163,-312.51641985,0.00093999,120]
[343053107,1732313445173,-666.57,0.00093999,120]
[343053108,1732313445183,-666.57,0.00093999,120]
[343053109,1732313445192,-532.43970785,0.00093999,120]
[343053110,1732313445202,-500.0,0.00093999,120]
[343053111,1732313445212,-500.0,0.00093999,120]
[343053112,1732313445222,-598.48,0.00093999,120]
[343053113,1732313445232,-598.48,0.00093999,120]
[343053114,1732313445242,-500.0,0.00093999,120]
[343053115,1732313445251,-500.0,0.00093999,120]
[343053116,1732313445260,-500.0,0.00093999,120]
[343053117,1732313445270,-500.0,0.00093999,120]
[343053118,1732313445279,-500.0,0.00093999,120]
[343053119,1732313445289,-315.25486309,0.00093999,120]
[343053120,1732313445299,-500.0,0.00093999,120]
[343053121,1732313445308,-500.0,0.00093999,120]
[343053122,1732313445318,-500.0,0.00093999,120]
[343053123,1732313445327,-353.73793501,0.00093999,120]
[343053126,1732313445337,-500.0,0.00093999,21]
[343053127,1732313445347,-545.16,0.00093999,120]
[343053129,1732313445356,-545.16,0.00093999,120]
[343053130,1732313445366,-500.0,0.00093999,120]
[343053132,1732313445376,-500.0,0.00093999,120]
[343053133,1732313445386,-500.0,0.00093999,120]
[343053134,1732313445395,-500.0,0.00093999,120]
[343053135,1732313445405,-500.0,0.00093999,120]
[343053136,1732313445414,-500.0,0.00093999,120]
[343053137,1732313445423,-500.0,0.00093999,120]
[343053138,1732313445433,-500.0,0.00093999,120]
[343053139,1732313445443,-1276.41,0.00093999,120]
[343053140,1732313445452,-50000.0,0.00094,86]
[343053141,1732313445475,-66322.08783341,0.00094,30]
[343053142,1732313445484,-17767.18083984,0.00094,120]
[343053143,1732313445494,-3000.0,0.00094,120]
[343053144,1732313445505,-50000.0,0.00094,120]
[343053145,1732313445515,-150.81,0.00094033,120]
[343053146,1732313445525,-299.9527354,0.00094079,120]
[343053147,1732313445536,-3970.44320872,0.00094087,120]
[343053148,1732313445545,-1000.0,0.00094407,120]
[343053149,1732313445555,-1755.58124203,0.00094447,15]
[343053150,1732313445564,-2166.02,0.00094587,120]
[343053151,1732313445574,-9689.94027202,0.00094691,12]
[343053152,1732313445585,-359.92838969,0.00094744,120]
[343053153,1732313445594,-500.0,0.00094799,120]
[343053154,1732313445604,-500.0,0.00094799,120]
[343053155,1732313445613,-500.0,0.00094799,120]
[343053156,1732313445623,-500.0,0.00094799,120]
[343053157,1732313445632,-500.0,0.00094799,120]
[343053158,1732313445641,-500.0,0.00094799,120]
[343053159,1732313445650,-666.57,0.00094799,120]
[343053160,1732313445660,-539.72106639,0.00094799,120]
[343053161,1732313445669,-598.48,0.00094799,120]
[343053162,1732313445678,-500.0,0.00094799,120]
[343053163,1732313445687,-320.65406619,0.00094799,120]
[343053164,1732313445697,-545.16,0.00094799,120]
[343053165,1732313445709,-500.0,0.00094799,120]
[343053166,1732313445719,-500.0,0.00094799,120]
[343053167,1732313445729,-950.97226,0.0009482,120]
[343053168,1732313445738,-2500.0,0.000949,120]
[343053169,1732313445749,-567.81484661,0.000949,83]
[343053170,1732313445759,-500.0,0.000949,120]
[343053171,1732313445769,-191.58404016,0.000949,30]
[343053172,1732313445778,-189.6348662,0.000949,120]
[343053173,1732313445788,-151.55054528,0.000949,2]
[343053174,1732313445797,-221.15531169,0.000949,2]
[343053175,1732313445807,-1952.890434,0.000949,2]
[343053176,1732313445817,-168.94698265,0.00094952,15]
[343053177,1732313445827,-1176.91420462,0.00094953,120]
[343053178,1732313445836,-9689.94027202,0.00094978,12]
[343053179,1732313445846,-276.43907521,0.00094986,120]
[343053180,1732313445856,-150.0,0.00094986,120]
[343053181,1732313445867,-500.0,0.00094988,120]
[343053182,1732313445877,-541.91,0.00094988,120]
[343053183,1732313445887,-500.0,0.00094988,120]
[343053184,1732313445897,-553.1,0.00094988,120]
[343053185,1732313445907,-500.0,0.00094988,120]
[343053186,1732313445917,-500.0,0.00094988,120]
[343053187,1732313445926,-500.0,0.00094988,120]
[343053188,1732313445937,-639.38717712,0.00094988,120]
[343053189,1732313445946,-500.0,0.00094988,120]
[343053190,1732313445957,-500.0,0.00094988,120]
[343053191,1732313445967,-500.0,0.00094988,120]
[343053192,1732313445976,-298.78,0.00094988,120]
[343053193,1732313445986,-828.72,0.00094988,2]
[343053194,1732313445995,-500.0,0.00094988,21]
[343053195,1732313446005,-500.0,0.00094988,120]
[343053196,1732313446014,-500.0,0.00094988,120]
[343053197,1732313446024,-500.0,0.00094988,120]
[343053198,1732313446033,-500.0,0.00094988,120]
[343053199,1732313446043,-535.73,0.00094988,120]
[343053200,1732313446053,-500.0,0.00094988,120]
[343053201,1732313446065,-500.0,0.00094988,120]
[343053202,1732313446074,-1276.41,0.00094988,120]
[343053203,1732313446084,-58139.6416321,0.00094989,12]
[343053204,1732313446094,-500.0,0.00094989,120]
[343053205,1732313446106,-541.91,0.00094989,120]
[343053206,1732313446115,-500.0,0.00094989,120]
[343053207,1732313446124,-553.1,0.00094989,120]
[343053208,1732313446134,-500.0,0.00094989,120]
[343053209,1732313446144,-500.0,0.00094989,120]
[343053211,1732313446156,-165.41943787,0.00094989,120]
[343053212,1732313446165,-500.0,0.00094989,120]
[343053214,1732313446174,-500.0,0.00094989,120]
[343053216,1732313446183,-828.72,0.00094989,2]
[343053218,1732313446193,-500.0,0.00094989,21]
[343053219,1732313446205,-500.0,0.00094989,120]
[343053221,1732313446214,-500.0,0.00094989,120]
[343053222,1732313446224,-500.0,0.00094989,120]
[343053223,1732313446234,-500.0,0.00094989,120]
[343053224,1732313446243,-535.73,0.00094989,120]
[343053225,1732313446252,-500.0,0.00094989,120]
[343053226,1732313446262,-500.0,0.00094989,120]
[343053227,1732313446271,-1276.41,0.00094989,120]
[343053228,1732313446282,-500.0,0.00094999,120]
[343053229,1732313446291,-500.0,0.00094999,120]
[343053230,1732313446300,-500.0,0.00094999,120]
[343053231,1732313446310,-500.0,0.00094999,120]
[343053232,1732313446320,-378.66,0.00094999,120]
[343053233,1732313446330,-532.16,0.00094999,120]
[343053234,1732313446339,-541.91,0.00094999,120]
[343053235,1732313446349,-541.91,0.00094999,120]
[343053236,1732313446359,-541.91,0.00094999,120]
[343053237,1732313446368,-541.91,0.00094999,120]
[343053238,1732313446377,-541.91,0.00094999,120]
[343053239,1732313446387,-541.91,0.00094999,120]
[343053240,1732313446397,-541.91,0.00094999,120]
[343053241,1732313446406,-541.91,0.00094999,120]
[343053242,1732313446416,-541.91,0.00094999,120]
[343053243,1732313446425,-541.91,0.00094999,120]
[343053244,1732313446435,-541.91,0.00094999,120]
[343053245,1732313446444,-541.91,0.00094999,120]
[343053246,1732313446455,-541.91,0.00094999,120]
[343053247,1732313446465,-541.91,0.00094999,120]
[343053248,1732313446474,-541.91,0.00094999,120]
[343053249,1732313446484,-541.91,0.00094999,120]
[343053250,1732313446494,-541.91,0.00094999,120]
[343053251,1732313446503,-541.91,0.00094999,120]
[343053252,1732313446512,-542.10269,0.00094999,120]
[343053253,1732313446522,-500.0,0.00094999,120]
[343053254,1732313446531,-500.0,0.00094999,120]
[343053255,1732313446540,-500.0,0.00094999,120]
[343053256,1732313446550,-500.0,0.00094999,120]
[343053257,1732313446559,-500.0,0.00094999,120]
[343053258,1732313446569,-500.0,0.00094999,120]
[343053259,1732313446578,-500.0,0.00094999,120]
[343053260,1732313446589,-500.0,0.00094999,120]
[343053261,1732313446598,-500.0,0.00094999,120]
[343053262,1732313446607,-500.0,0.00094999,120]
[343053263,1732313446616,-500.0,0.00094999,120]
[343053264,1732313446626,-500.0,0.00094999,120]
[343053265,1732313446636,-553.1,0.00094999,120]
[343053266,1732313446645,-500.0,0.00094999,120]
[343053267,1732313446655,-553.1,0.00094999,120]
[343053268,1732313446665,-553.1,0.00094999,120]
[343053269,1732313446674,-429.61340537,0.00094999,120]
[343053270,1732313446683,-553.1,0.00094999,120]
[343053271,1732313446693,-553.1,0.00094999,120]
[343053272,1732313446702,-553.1,0.00094999,120]
[343053273,1732313446712,-553.1,0.00094999,120]
[343053274,1732313446722,-553.1,0.00094999,120]
[343053275,1732313446732,-553.1,0.00094999,120]
[343053276,1732313446742,-553.1,0.00094999,120]
[343053277,1732313446751,-553.1,0.00094999,120]
[343053278,1732313446762,-553.1,0.00094999,120]
[343053279,1732313446771,-553.1,0.00094999,120]
[343053280,1732313446780,-553.1,0.00094999,120]
[343053281,1732313446790,-553.1,0.00094999,120]
[343053282,1732313446799,-553.1,0.00094999,120]
[343053283,1732313446809,-553.1,0.00094999,120]
[343053284,1732313446818,-553.1,0.00094999,120]
[343053285,1732313446827,-553.30374997,0.00094999,120]
[343053286,1732313446836,-500.0,0.00094999,120]
[343053287,1732313446846,-500.0,0.00094999,120]
[343053288,1732313446855,-500.0,0.00094999,120]
[343053289,1732313446864,-500.0,0.00094999,120]
[343053290,1732313446874,-500.0,0.00094999,120]
[343053291,1732313446883,-500.0,0.00094999,120]
[343053292,1732313446892,-500.0,0.00094999,120]
[343053293,1732313446902,-500.0,0.00094999,120]
[343053294,1732313446912,-454.0,0.00094999,120]
[343053295,1732313446921,-500.0,0.00094999,120]
[343053296,1732313446930,-500.0,0.00094999,120]
[343053297,1732313446939,-500.0,0.00094999,120]
[343053298,1732313446949,-500.0,0.00094999,120]
[343053299,1732313446961,-500.0,0.00094999,120]
[343053300,1732313446974,-500.0,0.00094999,120]
[343053301,1732313446983,-500.0,0.00094999,120]
[343053302,1732313446993,-163.65563145,0.00094999,120]
[343053303,1732313447002,-500.0,0.00094999,120]
[343053304,1732313447011,-500.0,0.00094999,120]
[343053305,1732313447021,-500.0,0.00094999,120]
[343053306,1732313447030,-500.0,0.00094999,120]
[343053307,1732313447040,-500.0,0.00094999,120]
[343053308,1732313447049,-500.0,0.00094999,120]
[343053309,1732313447140,-500.0,0.00094999,120]
[343053310,1732313447152,-500.0,0.00094999,120]
[343053311,1732313447162,-500.0,0.00094999,120]
[343053312,1732313447171,-500.0,0.00094999,120]
[343053313,1732313447180,-165.26,0.00094999,120]
[343053314,1732313447190,-500.0,0.00094999,120]
[343053315,1732313447199,-500.0,0.00094999,120]
[343053316,1732313447212,-500.0,0.00094999,120]
[343053317,1732313447223,-500.0,0.00094999,120]
[343053318,1732313447232,-427.34147508,0.00094999,120]
[343053319,1732313447242,-500.0,0.00094999,120]
[343053320,1732313447251,-500.0,0.00094999,120]
[343053321,1732313447261,-500.0,0.00094999,120]
[343053322,1732313447270,-500.0,0.00094999,120]
[343053323,1732313447280,-500.0,0.00094999,120]
[343053324,1732313447290,-500.0,0.00094999,120]
[343053325,1732313447299,-257.81408776,0.00094999,120]
[343053326,1732313447309,-500.0,0.00094999,120]
[343053327,1732313447319,-500.0,0.00094999,120]
[343053328,1732313447328,-500.0,0.00094999,120]
[343053329,1732313447337,-500.0,0.00094999,120]
[343053330,1732313447347,-500.0,0.00094999,120]
[343053331,1732313447356,-500.0,0.00094999,120]
[343053332,1732313447365,-500.0,0.00094999,120]
[343053333,1732313447375,-500.0,0.00094999,120]
[343053334,1732313447384,-500.0,0.00094999,120]
[343053335,1732313447393,-500.0,0.00094999,120]
[343053336,1732313447402,-500.0,0.00094999,120]
[343053337,1732313447412,-500.0,0.00094999,120]
[343053338,1732313447421,-500.0,0.00094999,120]
[343053339,1732313447431,-500.0,0.00094999,120]
[343053340,1732313447440,-500.0,0.00094999,120]
[343053341,1732313447450,-278.4,0.00094999,120]
[343053342,1732313447462,-666.57,0.00094999,120]
[343053343,1732313447472,-666.57,0.00094999,120]
[343053344,1732313447481,-666.57,0.00094999,120]
[343053345,1732313447491,-666.57,0.00094999,120]
[343053346,1732313447501,-666.57,0.00094999,120]
[343053347,1732313447511,-666.57,0.00094999,120]
[343053348,1732313447521,-666.57,0.00094999,120]
[343053349,1732313447530,-666.57,0.00094999,120]
[343053350,1732313447539,-666.57,0.00094999,120]
[343053351,1732313447548,-666.57,0.00094999,120]
[343053352,1732313447558,-666.57,0.00094999,120]
[343053353,1732313447567,-666.57,0.00094999,120]
[343053354,1732313447576,-165.67475979,0.00094999,120]
[343053355,1732313447593,-500.89524021,0.00094999,120]
[343053356,1732313447602,-399.24179215,0.00094999,120]
[343053357,1732313447636,-3004.85043397,0.00085799,2]
[343053358,1732313447647,-406.8399888,0.00085799,2]
[343053359,1732313447658,-1269.628188,0.00085799,2]
[343053360,1732313447673,-4272.54719996,0.00085799,2]
[343053361,1732313447684,-5979.69200007,0.00085799,2]
[343053362,1732313447696,-14487.0875,0.00085799,2]
[343053363,1732313447708,-4540.0,0.00085799,2]
[343053364,1732313447719,-1069.38465291,0.00085799,2]
[343053365,1732313447731,-2642.42690317,0.00085799,2]
[343053366,1732313447742,-2197.68885297,0.00085799,2]
[343053367,1732313447753,-3418.13234461,0.00085799,2]
[343053368,1732313447764,-577.02190642,0.00085799,2]
[343053369,1732313447794,-5260.12632912,0.00085799,2]
[343053370,1732313447803,-296.87041085,0.0008773,28]
[343053371,1732313447812,-453.06375742,0.0008773,120]
[343053372,1732313447821,-267.32820785,0.00094999,120]
[343053373,1732313447831,-666.57,0.00094999,120]
[343053374,1732313447840,-666.57,0.00094999,120]
[343053375,1732313447849,-666.58958081,0.00094999,120]
[343053376,1732313447858,-598.48,0.00094999,120]
[343053377,1732313447868,-598.48,0.00094999,120]
[343053378,1732313447877,-598.48,0.00094999,120]
[343053379,1732313447886,-598.48,0.00094999,120]
[343053380,1732313447895,-598.48,0.00094999,120]
[343053381,1732313447904,-598.48,0.00094999,120]
[343053382,1732313447914,-598.48,0.00094999,120]
[343053383,1732313447923,-598.48,0.00094999,120]
[343053384,1732313447932,-598.48,0.00094999,120]
[343053385,1732313447942,-598.48,0.00094999,120]
[343053386,1732313447951,-598.48,0.00094999,120]
[343053387,1732313447963,-598.48,0.00094999,120]
[343053388,1732313447972,-598.48,0.00094999,120]
[343053389,1732313447983,-598.48,0.00094999,120]
[343053390,1732313447993,-500.0,0.00094999,120]
[343053391,1732313448002,-598.48,0.00094999,120]
[343053392,1732313448012,-500.0,0.00094999,120]
[343053393,1732313448021,-598.48,0.00094999,120]
[343053394,1732313448031,-598.53,0.00094999,120]
[343053395,1732313448040,-500.0,0.00094999,120]
[343053396,1732313448050,-500.0,0.00094999,120]
[343053397,1732313448064,-500.0,0.00094999,120]
[343053398,1732313448074,-500.0,0.00094999,120]
[343053399,1732313448084,-500.0,0.00094999,120]
[343053400,1732313448094,-215.61812476,0.00094999,120]
[343053401,1732313448104,-375.63,0.00094999,120]
[343053402,1732313448114,-500.0,0.00094999,120]
[343053403,1732313448124,-500.0,0.00094999,120]
[343053404,1732313448133,-500.0,0.00094999,120]
[343053405,1732313448143,-500.0,0.00094999,120]
[343053406,1732313448152,-500.0,0.00094999,120]
[343053407,1732313448162,-500.0,0.00094999,120]
[343053408,1732313448172,-500.0,0.00094999,120]
[343053409,1732313448182,-500.0,0.00094999,120]
[343053410,1732313448191,-500.0,0.00094999,120]
[343053411,1732313448201,-500.0,0.00094999,120]
[343053412,1732313448213,-500.0,0.00094999,120]
[343053413,1732313448223,-500.0,0.00094999,120]
[343053414,1732313448234,-500.0,0.00094999,120]
[343053415,1732313448244,-500.0,0.00094999,120]
[343053416,1732313448254,-500.0,0.00094999,120]
[343053417,1732313448264,-500.0,0.00094999,120]
[343053418,1732313448275,-387.01498999,0.00094999,120]
[343053419,1732313448285,-828.72,0.00094999,2]
[343053420,1732313448295,-828.72,0.00094999,2]
[343053421,1732313448306,-644.29895704,0.00094999,2]
[343053422,1732313448319,-184.42104296,0.00094999,2]
[343053423,1732313448330,-828.72,0.00094999,2]
[343053424,1732313448339,-644.07044032,0.00094999,2]
[343053425,1732313448351,-184.64955968,0.00094999,2]
[343053426,1732313448362,-828.72,0.00094999,2]
[343053427,1732313448372,-828.72,0.00094999,2]
[343053428,1732313448382,-828.72,0.00094999,2]
[343053429,1732313448392,-828.72,0.00094999,2]
[343053430,1732313448402,-828.72,0.00094999,2]